Cogmind - Beta 9.1 @@@ ROGUE MODE // 2019.10.30 @ 00:12:44 Player: arsonius Result: Destroyed by G-47 Trooper with Particle Gun Performance ------------- Evolutions (3) 1500 Regions Visited (7) 1400 Robots Destroyed (21) 105 Value Destroyed (449) 449 Prototype IDs (5) 100 Alien Tech Used (0) 0 Bonus (300) 300 TOTAL SCORE: 3854 Bonus ------- Aligned with FarCom 300 Cogmind --------- Core Integrity 0/700 Matter 367/450 Energy 100/100 System Corruption 3% Temperature Cool (9) Location -7/Storage Parts ------- Power (1) Propulsion (4) Medium Treads Medium Treads Utility (6) Large Matter Pod Advanced Signal Interpreter Improved Utility Shielding Improved Medium Armor Plating Supersonic Drone Bay (0/1) Weapon (2) Inventory (4) Peak State ------------ Power Light Deuterium Engine Propulsion Flight Unit VTOL Module Cesium-ion Thruster Improved Cesium-ion Thruster Utility Advanced Weight Redist. System Advanced Signal Interpreter Transmission Jammer Improved ECM Suite Maneuvering Thrusters Supersonic Drone Bay Weapon Improved Spread Laser Inventory Improved Deuterium Engine Flight Unit Flight Unit Improved Field Recycling Unit [Rating: 43] Favorites ----------- Power Ion Engine Engine Ion Engine Propulsion Flight Unit Treads Medium Treads Leg Aluminum Leg Wheel Wheel Flight Unit Flight Unit Utility Small Storage Unit Device Supersonic Drone Bay Storage Small Storage Unit Processor Advanced Signal Interpreter Protection Improved Medium Armor Plating Weapon Light Assault Rifle Energy Gun Particle Gun Ballistic Gun Light Assault Rifle Special Weapon Plasma Cutter Build | -11 -10 -10 -10 -9 -8 -7 -7 ------- Run | Scr Mat Min Exi Min Mat Fac Sto Slots Evolved 6 | . . . . . 4 2 . Power . | . . . . . . . . Propulsion 2 | . . . . . 2 . . Utility 4 | . . . . . 2 2 . Weapon . | . . . . . . . . Parts Attached 67 | 4 4 10 4 3 8 15 19 Power 9 | 1 1 3 . . . 4 . Engine 9 | 1 1 3 . . . 4 . Core . | . . . . . . . . Reactor . | . . . . . . . . Propulsion 21 | 2 . 3 2 . 2 6 6 Treads 5 | . . . . . . . 5 Leg 3 | . . 3 . . . . . Wheel 4 | 2 . . . . . 1 1 Hover . | . . . . . . . . Flight 9 | . . . 2 . 2 5 . Utility 28 | . 1 2 2 1 5 4 13 Device 12 | . . 2 2 . 4 2 2 Storage 3 | . 1 . . . . 1 1 Processor 3 | . . . . 1 1 1 . Hackware . | . . . . . . . . Protection 10 | . . . . . . . 10 Artifact . | . . . . . . . . Weapon 9 | 1 2 2 . 2 1 1 . Energy Gun 3 | . . 1 . . 1 1 . Energy Cannon . | . . . . . . . . Ballistic Gun 3 | 1 1 1 . . . . . Ballistic Cannon . | . . . . . . . . Launcher . | . . . . . . . . Special Weapon 3 | . 1 . . 2 . . . Impact Weapon . | . . . . . . . . Slashing Weapon . | . . . . . . . . Piercing Weapon . | . . . . . . . . Special Melee Weapon . | . . . . . . . . Unidentified Prototypes 5 | . . . 1 . 1 3 . Parts Lost 24 | . . 2 . . . 10 12 Power 2 | . . . . . . 2 . Propulsion 10 | . . . . . . 5 5 Utility 9 | . . . . . . 2 7 Weapon 3 | . . 2 . . . 1 . Highest Loss Streak 11 | . . 1 . . . 10 11 Average Slot Usage (%) 88 | . 76 84 100 86 95 88 61 Engine 11 | . 14 14 14 14 9 6 . Treads 1 | . . . . . . . 16 Leg 10 | . . 17 21 . . . . Wheel 3 | . 28 9 . . . . 1 Flight 13 | . . . 6 28 36 29 2 Device 16 | . . 7 17 18 23 33 10 Storage 7 | . 12 14 10 . . 1 1 Processor 3 | . . . . 9 9 7 11 Protection 1 | . . . . . . . 15 Energy Gun 6 | . . 3 14 . 8 6 . Ballistic Gun 7 | . 21 13 14 2 . . . Special Weapon 3 | . . 2 . 13 9 . . Naked Turns . | . . . . . . . . Heaviest Build 30 | 6 15 16 14 8 13 19 30 Greatest Support 84 | 20 20 20 20 8 16 23 84 Greatest Overweight (x) 3 | 1 . 1 1 . . 3 3 Average Overweight (x) . | . . . . . . . . Largest Inventory Capacity 6 | 4 6 6 6 4 4 4 4 Average Capacity 4 | 4 5 6 5 4 4 4 4 Most Carried 6 | 4 6 6 6 4 4 4 4 Average Carried 4 | 2 5 5 5 4 2 3 2 Final Capacity 6 | 4 6 6 4 4 4 4 4 Final Carried 6 | 4 6 6 4 4 3 1 . Class Distribution -------------------- 36% | Scavenger-Mutant 35% | Mutant 24% | Infiltrator-Sprinter 3% | Scavenger-Sprinter Dominant Class ---------------- Mutant | -10/Materials Mutant | -10/Mines Scavenger-Mutant | -10/Exiles Mutant | -9/Mines Infiltrator-Sprinter | -8/Materials Infiltrator-Sprinter | -7/Factory Mutant | -7/Storage Resources | -11 -10 -10 -10 -9 -8 -7 -7 ----------- Run | Scr Mat Min Exi Min Mat Fac Sto Matter Collected 906 | 190 13 372 . 76 . . 255 Remotely . | . . . . . . . . Salvage Created 506 | . 47 411 . . . . 48 Parts 42 | . 8 33 . . . . 1 Haulers Intercepted . | . . . . . . . . Recyclers Shooed . | . . . . . . . . Parts Field Recycled . | . . . . . . . . Retrieved Matter . | . . . . . . . . Parts Self-Destructed . | . . . . . . . . Prevented . | . . . . . . . . Kills | -11 -10 -10 -10 -9 -8 -7 -7 ------- Run | Scr Mat Min Exi Min Mat Fac Sto Combat Hostiles Destroyed 19 | . 3 15 . . . . 1 Melee 1 | . . . . . . . 1 Guns 18 | . 3 15 . . . . . Classes Destroyed 4 | . 1 3 . . . . . Tunneler 2 | . . 2 . . . . . Swarmer 9 | . 3 6 . . . . . Grunt 9 | . . 8 . . . . 1 Assembled 1 | . . 1 . . . . . Best Kill Streak 4 | . 3 4 . . . . 1 Combat Bots Only 3 | . 3 3 . . . . 1 Max Kills in Single Turn 1 | . 1 1 . . . . 1 Gunslinging . | . . . . . . . . Exploded . | . . . . . . . . Melee 1 | . . . . . . . 1 Uniques/NPCs Destroyed . | . . . . . . . . Combat | -11 -10 -10 -10 -9 -8 -7 -7 -------- Run | Scr Mat Min Exi Min Mat Fac Sto Damage Taken 4350 | . 64 576 . . 45 934 2731 Core 892 | . 7 168 . . 15 283 419 Absorbed by Shields . | . . . . . . . . Core Remaining (%) 75 | 100 . . . 30 97 . . Volleys Fired 67 | . 4 51 10 . 2 . . Largest 1 | . 1 1 1 . 1 . . Hottest 65 | . 23 65 65 . 20 . . Shots Fired 67 | . 4 51 10 . 2 . . Gun 65 | . 4 51 10 . . . . Cannon . | . . . . . . . . Launcher . | . . . . . . . . Special 2 | . . . . . 2 . . Kinetic 56 | . 4 46 6 . . . . Thermal 11 | . . 5 4 . 2 . . Explosive . | . . . . . . . . Electromagnetic . | . . . . . . . . Robot Hit Streak 12 | . 5 12 . . 5 . . Robot Miss Streak 3 | . 2 3 . . . . . Penetration Max . | . . . . . . . . Secondary Targets . | . . . . . . . . Shots Hit Robots 46 | . 3 41 . . 2 . . Core Hits 35 | . 3 30 . . . . 2 Critical Hits 2 | . . 2 . . . . . Critical Kills 1 | . . 1 . . . . . Critical Parts Destroyed 1 | . . 1 . . . . . Melee Attacks . | . . . . . . . . Impact . | . . . . . . . . Slashing . | . . . . . . . . Piercing . | . . . . . . . . Sneak Attacks . | . . . . . . . . Combat Hostiles . | . . . . . . . . Follow-up Attacks . | . . . . . . . . Damage Inflicted 811 | . 32 723 . . 21 . 35 Guns 755 | . 32 723 . . . . . Cannons . | . . . . . . . . Explosions . | . . . . . . . . Melee . | . . . . . . . . Ramming 35 | . . . . . . . 35 Kinetic 688 | . 32 656 . . . . . Thermal 88 | . . 67 . . 21 . . Explosive . | . . . . . . . . Electromagnetic . | . . . . . . . . Impact . | . . . . . . . . Slashing . | . . . . . . . . Piercing . | . . . . . . . . Highest Corruption 4 | . . . . . . 4 4 Average Corruption 2 | . . . . . . 3 2 Corruption Purged 2 | . . . . . . . 2 Effects 9 | . . . . . . 6 3 Message Errors 5 | . . . . . . 3 2 Matter Fused 3 | . . . . . . 3 . Heat Flow Errors 1 | . . . . . . . 1 Overload Shots . | . . . . . . . . Overflow Damage . | . . . . . . . . Projectiles . | . . . . . . . . Explosions . | . . . . . . . . Melee . | . . . . . . . . Knockbacks . | . . . . . . . . Impact . | . . . . . . . . Kinetic . | . . . . . . . . Secondary . | . . . . . . . . Self-Inflicted Damage . | . . . . . . . . Shots . | . . . . . . . . Rammed 12 | . . . . . . . 12 Targets Rammed 12 | . . . . . . . 12 Kicked . | . . . . . . . . Crushed . | . . . . . . . . Highest Temperature 141 | . . 120 48 . 3 11 141 Average Temperature 37 | . . 50 27 . 3 7 40 Received Heat Transfer 1440 | . 6 234 . . 18 63 1119 Siege Activations . | . . . . . . . . Robots Corrupted . | . . . . . . . . Combat Hostiles . | . . . . . . . . Parts Fried . | . . . . . . . . Impact Corruptions . | . . . . . . . . Robots Melted . | . . . . . . . . Combat Hostiles . | . . . . . . . . Parts Melted . | . . . . . . . . Heat Transferred 222 | . . 148 . . 74 . . Parts Sabotaged . | . . . . . . . . Parts Stolen . | . . . . . . . . Parts Stripped . | . . . . . . . . Power Chain Reactions . | . . . . . . . . Missiles Intercepted . | . . . . . . . . Alert | -11 -10 -10 -10 -9 -8 -7 -7 ------- Run | Scr Mat Min Exi Min Mat Fac Sto Peak Influence 202 | . 85 202 . 15 105 86 40 Average Influence 47 | . 28 86 . . 47 33 9 Maximum Alert Level 1 | . . 1 . . . . . Low Security (%) 97 | . . . . . . . . Level 1 2 | . . . . . . . . Level 2 . | . . . . . . . . Level 3 . | . . . . . . . . Level 4 . | . . . . . . . . Level 5 . | . . . . . . . . High Security . | . . . . . . . . Max Security . | . . . . . . . . Squads Dispatched 9 | . 1 . . . 3 3 2 Investigation 2 | . . . . . . 1 1 Extermination 2 | . . . . . . 1 1 Reinforcement 5 | . 1 . . . 3 1 . Assault . | . . . . . . . . Garrison . | . . . . . . . . Intercept . | . . . . . . . . Construction Impeded . | . . . . . . . . Haulers Reinforced . | . . . . . . . . Stealth | -11 -10 -10 -10 -9 -8 -7 -7 --------- Run | Scr Mat Min Exi Min Mat Fac Sto Distress Signals 1 | . 1 . . . . . . Communications Jammed . | . . . . . . . . Distress Signals . | . . . . . . . . Times Spotted 72 | . 7 15 . 3 10 17 20 Peak Tracking Total 12 | . 5 3 . 4 3 9 12 Tactical Retreats 6 | . . . . 1 1 4 . Traps | -11 -10 -10 -10 -9 -8 -7 -7 ------- Run | Scr Mat Min Exi Min Mat Fac Sto Traps Triggered 5 | . . . . . . 3 2 Indirectly . | . . . . . . . . Trap Hack Attempts . | . . . . . . . . Triggered . | . . . . . . . . Disarmed . | . . . . . . . . Reprogrammed . | . . . . . . . . Reused . | . . . . . . . . Traps Extracted . | . . . . . . . . Installed . | . . . . . . . . Triggered . | . . . . . . . . Machines | -11 -10 -10 -10 -9 -8 -7 -7 ---------- Run | Scr Mat Min Exi Min Mat Fac Sto Machines Disabled 1 | . . . 1 . . . . Max in Single Turn 1 | . . . 1 . . . . Machines Sabotaged . | . . . . . . . . Garrisons Compromised . | . . . . . . . . Overloaded Fab Kills . | . . . . . . . . Fab Network Shutdowns . | . . . . . . . . Hacking | -11 -10 -10 -10 -9 -8 -7 -7 --------- Run | Scr Mat Min Exi Min Mat Fac Sto Machines Accessed 12 | . 1 1 1 . 2 5 2 Terminals 8 | . 1 1 . . 1 4 1 Fabricators . | . . . . . . . . Repair Stations . | . . . . . . . . Recycling Units 2 | . . . . . . 1 1 Scanalyzers 1 | . . . . . 1 . . Garrison Access . | . . . . . . . . Total Hacks 68 | . 5 7 23 . 9 20 4 Successful 50 | . 3 6 23 . 8 7 3 Failed 18 | . 2 1 . . 1 13 1 Catastrophic 2 | . . . . . . 2 . Database Lockouts . | . . . . . . . . Manual 10 | . . 4 1 . . 4 1 Terminals 29 | . 5 7 . . 2 13 2 Fabricators . | . . . . . . . . Repair Stations . | . . . . . . . . Recycling Units 9 | . . . . . . 7 2 Scanalyzers 7 | . . . . . 7 . . Garrison Access . | . . . . . . . . Terminal Hacks 38 | . 3 6 23 . 1 3 2 Record 25 | . 1 1 23 . . . . Open Door 1 | . . . . . . . 1 Terminal Index 1 | . . 1 . . . . . Alert Level 1 | . . . . . . 1 . Locate Traps 3 | . . 1 . . . 1 1 Patrol Status 1 | . . 1 . . . . . Hauler Manifests 2 | . 1 1 . . . . . Zone Layout 4 | . 1 1 . . 1 1 . Fabricator Hacks . | . . . . . . . . Repair Station Hacks . | . . . . . . . . Recycling Unit Hacks 5 | . . . . . . 4 1 Process 1 | . . . . . . 1 . Report Inventory 2 | . . . . . . 1 1 Retrieve Matter 2 | . . . . . . 2 . Scanalyzer 7 | . . . . . 7 . . Insert Component 4 | . . . . . 4 . . Analyze 3 | . . . . . 3 . . Garrison Access Hacks . | . . . . . . . . Unauthorized Hacks . | . . . . . . . . Terminals . | . . . . . . . . Fabricators . | . . . . . . . . Repair Stations . | . . . . . . . . Recycling Units . | . . . . . . . . Scanalyzers . | . . . . . . . . Garrison Access . | . . . . . . . . Data Cores Recovered . | . . . . . . . . Used . | . . . . . . . . Hacking Detections 10 | . 1 1 . . 2 4 2 Full Trace Events 1 | . . . . . . 1 . Feedback Events . | . . . . . . . . Feedback Blocked . | . . . . . . . . Robot Schematics Acquired . | . . . . . . . . Robots Built . | . . . . . . . . Matter . | . . . . . . . . Time . | . . . . . . . . Total Robot Build Rating . | . . . . . . . . Part Schematics Acquired 3 | . . . . . 3 . . Parts Built . | . . . . . . . . Matter . | . . . . . . . . Time . | . . . . . . . . Total Part Build Rating . | . . . . . . . . Parts Repaired . | . . . . . . . . Time . | . . . . . . . . Parts Recycled . | . . . . . . . . Recycled Matter 7 | . . . . . . 7 . Retrieved Matter 7 | . . . . . . 7 . Retrieved Components . | . . . . . . . . Parts Scanalyzed 3 | . . . . . 3 . . Part Schematics Acquired 3 | . . . . . 3 . . Parts Damaged . | . . . . . . . . Bothacking | -11 -10 -10 -10 -9 -8 -7 -7 ------------ Run | Scr Mat Min Exi Min Mat Fac Sto Used RIF Installer . | . . . . . . . . Robots Hacked . | . . . . . . . . Non-combat . | . . . . . . . . Combat . | . . . . . . . . Robot Hacks Applied . | . . . . . . . . Relay Couplers Released . | . . . . . . . . Robots Rewired . | . . . . . . . . Allies Hacked . | . . . . . . . . Hacks Repelled . | . . . . . . . . Allies | -11 -10 -10 -10 -9 -8 -7 -7 -------- Run | Scr Mat Min Exi Min Mat Fac Sto Total Allies 1 | . . . . 1 . . . Largest Group 1 | . . . . 1 . . . Highest-Rated Group 31 | . . . . 31 . . . Highest-Rated Ally 31 | . . . . 31 . . . Total Orders 2 | . . . 1 . 1 . . RETURN 2 | . . . 1 . 1 . . Ally Attacks 3 | . . . . 3 . . . Total Damage 22 | . . . . 22 . . . Kills . | . . . . . . . . Allies Corrupted . | . . . . . . . . Allies Melted . | . . . . . . . . Intel | -11 -10 -10 -10 -9 -8 -7 -7 ------- Run | Scr Mat Min Exi Min Mat Fac Sto Robot Analysis Total . | . . . . . . . . Derelict Logs Recovered 3 | . . 1 . 2 . . . Drone Launches 3 | . . . 1 . 1 1 . Drone Recoveries 2 | . . . 1 . 1 . . Exploration | -11 -10 -10 -10 -9 -8 -7 -7 ------------- Run | Scr Mat Min Exi Min Mat Fac Sto Turns Passed 3778 | 45 117 995 917 337 556 541 270 Spaces Moved 4067 | 42 114 642 745 818 501 994 211 Core 159 | 17 . . . . . 22 120 Treads 70 | . . . . . . . 70 Legs 983 | . . 407 576 . . . . Wheels 395 | 25 114 235 . . . . 21 Hover . | . . . . . . . . Flight 2460 | . . . 169 818 501 972 . Fastest Speed 29 | 50 80 80 117 37 31 29 50 Average Speed 65 | 80 80 105 119 37 31 32 99 Slowest Speed 200 | 100 80 150 120 37 37 200 200 Overloaded Moves . | . . . . . . . . Propulsion Burnouts . | . . . . . . . . Robots Hopped 27 | . . . . . 11 16 . Cave-ins Triggered . | . . . . . . . . Exploration Rate (%) 55 | 4 29 97 93 87 39 29 64 Regions Visited 7 Branch Regions 4 Pre-discovered Areas 3 | . . 1 1 1 . . . Known Exits Taken 3 | . . . . 1 1 1 . Unknown Exits Taken 4 | 1 1 1 1 . . . . Scrap Searched 5 | . . 2 . 3 . . . Spaces Dug . | . . . . . . . . Terrain Destroyed . | . . . . . . . . Melee . | . . . . . . . . Projectile . | . . . . . . . . AOE . | . . . . . . . . Actions | -11 -10 -10 -10 -9 -8 -7 -7 --------- Run | Scr Mat Min Exi Min Mat Fac Sto Total 5064 | 52 137 908 764 851 887 1204 261 Wait 793 | . 2 193 2 28 379 184 5 Move 4010 | 41 113 641 744 817 481 962 211 Hop 23 | . . . . . 8 15 . Pick Up 47 | 7 8 4 . . 5 14 9 Fast Attach 25 | 1 2 7 2 3 . 2 8 Attach 30 | 3 1 . . . 8 9 9 Detach 2 | . . . . . 2 . . Swap 12 | . 1 3 2 . . 4 2 Drop 43 | . 6 9 4 3 2 14 5 Fire 67 | . 4 51 10 . 2 . . Melee . | . . . . . . . . Ram 1 | . . . . . . . 1 Kick . | . . . . . . . . Crush 11 | . . . . . . . 11 Escape Stasis . | . . . . . . . . Rewire . | . . . . . . . . Trap . | . . . . . . . . Miscellaneous . | . . . . . . . . Route ------- -11/Scrapyard -10/Materials -10/Mines (discovered 3 exits: [*Mat x2] / *Exi) -10/Exiles (discovered 2 exits: [*Min x2]) -9/Mines (discovered 2 exits: *Mat x2) -8/Materials -7/Factory -7/Storage (discovered 1 exit: [*Fac]) History --------- Turn | Location | Event 20 | -11/Scrapyard | Discovered new exit (range 15) 46 | -11/Scrapyard | Entered Materials 145 | -10/Materials | Discovered new exit (range 12) 163 | -10/Materials | Entered Mines 182 | -10/Mines | Discovered new exit (range 4) 205 | -10/Mines | Learned location of Storage (-7) 258 | -10/Mines | Deemed a non-threat by the Exiles lab entrance 258 | -10/Mines | Discovered new exit (range 5) 300 | -10/Mines | Build established: Mutant 358 | -10/Mines | Discovered new exit (range 12) 379 | -10/Mines | Excavation squad dispatched 379 | -10/Mines | A large section of the Mines collapsed 864 | -10/Mines | Core integrity fell below 50% 1073 | -10/Mines | Build established: Scavenger-Mutant 1158 | -10/Mines | Entered Exiles 1180 | -10/Exiles | Discovered new exit (range 14) 1238 | -10/Exiles | Met 8R-AWN 1265 | -10/Exiles | Met EX-HEX 1315 | -10/Exiles | Met EX-DEC 1359 | -10/Exiles | Visited The Gauntlet 1544 | -10/Exiles | Learned location of Zion (-7) 1608 | -10/Exiles | Discovered new exit (range 12) 1722 | -10/Exiles | Met EX-BIN 1793 | -10/Exiles | Aligned with FarCom system 1794 | -10/Exiles | Given EX-Vault access code 1831 | -10/Exiles | Opened EX-Vault 1837 | -10/Exiles | Found Prototype Device 1837 | -10/Exiles | Identified Supersonic Drone Bay 1903 | -10/Exiles | Warned to stay clear of 0b10 Research branches 2075 | -10/Exiles | Left Exiles lab with Supersonic Drone Bay 2075 | -10/Exiles | Entered Mines 2089 | -9/Mines | Assisted by bots powering up and referring to "LRC-V3" 2123 | -9/Mines | Discovered new exit (range 11) 2128 | -9/Mines | Received a Mining Laser from a helpful Derelict 2182 | -9/Mines | Discovered new exit (range 16) 2199 | -9/Mines | Learned Materials security intel 2260 | -9/Mines | Identified exit to Materials 2329 | -9/Mines | Received a Rocket Launcher from a helpful Derelict 2412 | -9/Mines | Entered Materials 2412 | -8/Materials | Evolved 4 slots: Propulsion x2, Utility x2 2844 | -8/Materials | Build established: Infiltrator-Sprinter 2938 | -8/Materials | Discovered new exit (range 16) 2946 | -8/Materials | Identified exit to Factory 2968 | -8/Materials | Entered Factory 2968 | -7/Factory | Evolved 2 slots: Utility x2 3507 | -7/Factory | Discovered new exit (range 6) 3509 | -7/Factory | Identified exit to Storage 3509 | -7/Factory | Entered Storage 3530 | -7/Storage | Lost 10 parts (2p5n2u1w) 3554 | -7/Storage | Core integrity fell below 50% 3722 | -7/Storage | Core integrity fell below 20% 3760 | -7/Storage | Lost 11 parts (4n7u) 3762 | -7/Storage | Build established: Mutant 3766 | -7/Storage | Discovered new exit (range 14) 3779 | -7/Storage | Destroyed by G-47 Trooper with Particle Gun Last Messages --------------- Acquired Wheel. K-01 Serf collects debris. Imp. Medium Armor Plating destroyed. K-01 Serf collects debris. Imp. Medium Armor Plating destroyed. Wheel destroyed. G-47 Trooper destroyed. K-01 Serf collects debris. G-47 Trooper destroyed. Door malfunctions. K-01 Serf collects debris. Y-54 Guardian destroyed. Imp. Medium Armor Plating destroyed. K-01 Serf collects debris. Imp. Medium Armor Plating destroyed. Acquired Imp. Medium Armor Plating. System corrupted: Heat flow error (+175). ALERT: Rogue bot located, Programmers report to Storage Zone 8U. Slammed into P-60 Hacker. EXIT=FOUND Map ----- +----------------------------------------------------+ | | | | | | | | | | | | | | | | | | | | | ??????????????????????????????? | | ??????????????????????????????? | | ??????????????????????????????? | | ??????????????????????????????? | | ??????????????????????????????? | | ??????????????????????????????? | | ??????????????????????????????? | | ???#####??????????????????????? | | ???# #??????????????????????? | | ???# < #??????????????????????? | | ???# #??????????????????????? | | ???# ##????????????????####?? | | ???# ????????????????? #?? | | ???# ????????????????? #?# | | ???# a#?????????????????# #?# | | ???# @#???#######?#?#???# #?# | | ???# #???#"""""#?# ??# #?# | | ???# #???#""R""#?# ""??# #?# | | ???# ##### " " ### """?# #?# | | ???# # # """?# #?# | | ???# # # # ### | | ???# #b"""" """" # """ # | | ???#pgg# """" """" # """ + | | ???# Y """" """" # """ # | | ???# Yg#Y"""" """" # # | | ???# # YY # ?# ### | | ???# #########/### ?# + | | ???# #???????# #?# ??# ## | | ???# #???????# #?# ##??# #??? | | ???# #???????# #?##????# #??? | | ???# #???????# #???????# #??? | | ???# ????????# #########/#??? | | ???# ????????# # !%* #??? | | ???# ????????# # !!!%#??? | | ???# ######### # ! =%!=#??? | | ???# # #??? | | ???# / #??? | | ???# # ! #??? | | ???#########/##### #??? | | ?????????? ????# #??? | +----------------------------------------------------+ Best States ------------- Heat Dissipation 34 Energy Generation 16 Energy Capacity 290 Matter Stores 372 Matter Capacity 450 Sight Range 22 Terrain Scan Density 10 ECM Strength 2 Jamming Range 8 Armor Coverage 900 Resistance: EM 15 Utility Shielding 66 Evasion (%) 64 Recoil Reduction 4 Item Schematics ----------------- Flight Unit | -8/Materials | Scanalyzed Transmission Jammer | -8/Materials | Scanalyzed Lrg. Matter Pod | -8/Materials | Scanalyzed Robot Schematics ------------------ None Fabricated ------------ Nothing Alien Tech Used ----------------- None Achievements -------------- Fist Fight root@ Challenges ------------ None Game ------ Seed ReclamationXenonCoupler Manual? 0 Play Time 02:09:02 Cumulative 16.6 hours Start 2019.10.29 @ 21:22:18 End 2019.10.30 @ 00:12:44 Sessions 1 Manual Loads 0 Difficulty Rogue Special Mode None Game No. 8 Rogue 8 Adventurer 0 Explorer 0 Win Type - Total 0 Types 0/0/0/0/0/0/0 Lore% 10 Gallery% 23 Achievement% 19 Wizard Run 0 Options --------- ASCII 1 Keyboard 0 Movement Numpad Keybinds 0 Fullscreen 1 Font 12/Smallcaps Map View 83x54 Tactical HUD 0 Map Filters NONE Filters NONE Steam 1 RUN: 0fc59ae0-ca96-43df-9967-02ea5cf7e8f6